bitfinex/quotes_BTCUSD_20230113
["timestamp","ask_amount","ask_price","bid_price","bid_amount"]
[1673568609981,0.00419086,18841.0,18840.0,0.422268]
[1673568612205,0.00419086,18841.0,18840.0,0.522268]
[1673568612938,0.00474098,18841.0,18840.0,0.522268]
[1673568613192,0.00419086,18841.0,18840.0,0.522268]
[1673568613477,0.00419086,18841.0,18840.0,0.428968]
[1673568614447,0.00474098,18841.0,18840.0,0.428968]
[1673568614694,0.01739212,18841.0,18840.0,0.428968]
[1673568615943,0.01794224,18841.0,18840.0,0.428968]
[1673568616187,0.01739212,18841.0,18840.0,0.428968]
[1673568619695,0.01739212,18841.0,18840.0,0.92037294]
[1673568619927,0.01383147,18843.0,18841.0,0.1]
[1673568620165,0.01383147,18843.0,18842.0,0.328968]
[1673568621405,0.01383147,18843.0,18842.0,0.609568]
[1673568621911,0.01383147,18843.0,18842.0,0.515868]
[1673568623933,0.01438159,18843.0,18842.0,0.422568]
[1673568624178,0.01383147,18843.0,18841.0,0.1]
[1673568624656,0.01383147,18843.0,18842.0,0.328968]
[1673568626120,0.01383147,18843.0,18841.0,0.1939]
[1673568626362,0.01383147,18843.0,18842.0,0.328968]
[1673568627085,0.01383147,18843.0,18841.0,0.1939]
[1673568627567,0.01438159,18843.0,18841.0,0.1939]
[1673568627847,0.01383147,18843.0,18841.0,0.1939]
[1673568629089,0.01438159,18843.0,18841.0,0.0939]
[1673568629327,0.47245353,18843.0,18840.0,0.1]
[1673568629864,0.17190341,18843.0,18840.0,0.1]
[1673568630123,0.00055012,18842.0,18840.0,0.1]
[1673568630373,0.16712206,18842.0,18839.0,0.1]
[1673568631104,0.46712206,18842.0,18839.0,0.1]
[1673568632399,0.39517985,18841.0,18836.0,0.10019]
[1673568632645,0.3939,18840.0,18836.0,0.10019]
[1673568632889,0.0085,18839.0,18836.0,0.10019]
[1673568633644,0.0085,18839.0,18836.0,0.428968]
[1673568633897,0.0085,18839.0,18837.0,0.328968]
[1673568634159,0.0085,18839.0,18836.0,0.1]
[1673568635904,0.16657194,18839.0,18836.0,0.1]
[1673568636148,0.0085,18839.0,18836.0,0.1]
[1673568636645,0.02704735,18838.0,18836.0,0.31030494]
[1673568636897,0.02704735,18838.0,18837.0,0.328968]
[1673568637141,0.02704735,18838.0,18836.0,0.428968]
[1673568637380,0.02704735,18838.0,18836.0,0.1]
[1673568638366,0.02759747,18838.0,18836.0,0.1]
[1673568639596,0.02704735,18838.0,18836.0,0.1]
[1673568639827,0.02759747,18838.0,18836.0,0.428968]
[1673568640096,0.02759747,18838.0,18837.0,0.328968]
[1673568640341,0.02759747,18838.0,18836.0,0.1]
[1673568641839,0.02759747,18838.0,18834.0,0.1177302]
[1673568641840,0.0085,18837.0,18834.0,0.1177302]
[1673568642086,0.0085,18837.0,18834.0,0.0177302]
[1673568642565,0.02699748,18836.0,18834.0,0.0177302]
[1673568643053,0.1024,18835.0,18834.0,0.0177302]
[1673568643535,0.4024,18835.0,18834.0,0.0177302]
[1673568643796,0.0085,18835.0,18834.0,0.0177302]
[1673568644039,0.0085,18835.0,18834.0,0.01765493]
[1673568644749,0.03544801,18835.0,18834.0,0.01765493]
[1673568645305,0.30092801,18835.0,18832.0,0.0177302]
[1673568645550,0.30055012,18834.0,18832.0,0.0177302]
[1673568645795,0.0085,18833.0,18832.0,0.0177302]
[1673568646768,0.00905012,18833.0,18832.0,0.0177302]
[1673568647034,0.00055012,18833.0,18832.0,0.0177302]
[1673568648735,0.02746092,18833.0,18832.0,0.0177302]
[1673568648973,0.03596092,18833.0,18832.0,0.0177302]
[1673568649455,0.14284701,18833.0,18832.0,0.0177302]
[1673568649714,0.34894701,18833.0,18832.0,0.0177302]
[1673568650202,0.44284701,18833.0,18832.0,0.0177302]
[1673568650451,0.42986092,18833.0,18832.0,0.0177302]
[1673568650692,0.1293108,18833.0,18832.0,0.0177302]
[1673568650932,0.0354108,18833.0,18832.0,0.0177302]
[1673568654182,0.0354108,18833.0,18832.0,0.56193188]
[1673568654183,0.0269108,18833.0,18832.0,0.56193188]
[1673568654421,0.0269108,18833.0,18832.0,0.89089988]
[1673568654671,0.53388241,18836.0,18832.0,0.89089988]
[1673568654910,0.53388241,18836.0,18833.0,0.21030494]
[1673568655151,0.00055012,18835.0,18833.0,0.21030494]
[1673568655381,0.00055012,18835.0,18833.0,0.1]
[1673568655662,0.53388241,18836.0,18833.0,0.1]
[1673568655906,0.0085,18835.0,18833.0,0.1]
[1673568656173,0.00055012,18834.0,18833.0,0.1]
[1673568656417,0.3085,18835.0,18833.0,0.1]
[1673568656656,0.02679716,18834.0,18833.0,0.1]
[1673568656906,0.03529716,18834.0,18833.0,0.63533435]
[1673568657637,0.03529716,18834.0,18833.0,0.428968]
[1673568657881,0.02679716,18834.0,18833.0,0.428968]
[1673568658643,0.53306705,18837.0,18834.0,0.55821517]
[1673568658886,0.55912037,18836.0,18835.0,0.1]
[1673568659141,0.52307412,18835.0,18832.0,0.63831451]
[1673568659398,0.0085,18834.0,18832.0,0.63831451]
[1673568659638,0.3085,18834.0,18832.0,0.63831451]
[1673568659889,0.3085,18834.0,18832.0,0.63846509]
[1673568660140,0.3085,18834.0,18832.0,0.63831451]
[1673568660660,0.02677855,18833.0,18832.0,0.63831451]
[1673568660911,0.03582867,18833.0,18832.0,0.63831451]
[1673568661154,0.03527855,18833.0,18832.0,0.63831451]
[1673568661411,0.03527855,18833.0,18832.0,0.63846825]
[1673568661673,0.03527855,18833.0,18832.0,0.63831451]
[1673568661938,0.03582867,18833.0,18832.0,0.63831451]
[1673568662190,0.03527855,18833.0,18832.0,0.63831451]
[1673568662934,0.03582867,18833.0,18832.0,0.63831451]
[1673568663425,0.03582867,18833.0,18832.0,0.0177302]
[1673568664668,0.03527855,18833.0,18832.0,0.0177302]
[1673568665407,0.03527855,18833.0,18832.0,0.64163489]
[1673568665680,0.02677855,18833.0,18832.0,0.97060289]
[1673568665934,0.02677855,18833.0,18832.0,1.07060289]
[1673568666183,0.5024901,18836.0,18833.0,0.1]
[1673568666424,0.5024901,18836.0,18834.0,0.338968]
[1673568666678,0.5024901,18836.0,18834.0,0.22030494]
[1673568666922,0.5024901,18836.0,18834.0,0.01]
[1673568667184,0.04775681,18836.0,18835.0,0.65951021]
[1673568667432,0.04775681,18836.0,18835.0,0.98847821]
[1673568667673,0.50497056,18837.0,18835.0,0.98847821]
[1673568667914,0.50497056,18837.0,18836.0,0.328968]
[1673568668171,0.50497056,18837.0,18835.0,0.65951021]
[1673568668426,0.50497056,18837.0,18836.0,0.1]
[1673568668687,0.53051597,18837.0,18836.0,0.1]
[1673568668927,0.53901597,18837.0,18836.0,0.1]
[1673568669445,0.53901597,18837.0,18834.0,0.1]
[1673568669446,0.57644842,18837.0,18834.0,0.1]
[1673568669700,0.7836831,18836.0,18834.0,0.1]
[1673568670190,0.7836831,18836.0,18833.0,0.83687477]
[1673568670449,0.00055012,18835.0,18834.0,0.65798155]
[1673568670706,0.09455012,18835.0,18834.0,0.65798155]
[1673568670954,0.10305012,18835.0,18834.0,0.65798155]
[1673568671704,0.1025,18835.0,18834.0,0.65798155]
[1673568672688,0.02492083,18835.0,18834.0,0.65798155]
[1673568672923,0.02492083,18835.0,18834.0,0.98694955]
[1673568673418,0.02492083,18835.0,18834.0,0.65798155]
[1673568673669,0.04820225,18837.0,18834.0,1.08694955]
[1673568673929,0.04820225,18837.0,18835.0,0.328968]
[1673568674170,0.04820225,18837.0,18836.0,0.328968]
[1673568674413,0.00764951,18839.0,18836.0,0.428968]
[1673568674655,0.00764951,18839.0,18837.0,0.328968]
[1673568674904,0.00764951,18839.0,18837.0,0.21030494]
[1673568675153,0.44310619,18839.0,18836.0,0.25169046]
[1673568675394,0.44310619,18839.0,18836.0,0.8031368]
[1673568675635,0.44255607,18839.0,18836.0,0.8031368]
[1673568675879,0.44255607,18839.0,18837.0,0.1]
[1673568676381,0.3,18838.0,18837.0,0.1]
[1673568676646,0.32487066,18838.0,18837.0,0.1]
[1673568677648,0.02487066,18838.0,18837.0,0.78923696]
[1673568677898,0.02487066,18838.0,18837.0,1.27527514]
[1673568678121,0.02487066,18838.0,18837.0,0.88782395]
[1673568678363,0.02487066,18838.0,18837.0,0.67751901]
[1673568679121,0.02487066,18838.0,18837.0,0.92892011]
[1673568680596,0.02487066,18838.0,18837.0,0.77091901]
[1673568685334,0.02487066,18838.0,18837.0,1.29715171]
[1673568685838,0.00476856,18839.0,18838.0,0.14974131]
[1673568686087,0.00476856,18839.0,18838.0,0.47870931]
[1673568686335,0.00476856,18839.0,18838.0,0.63867692]
[1673568686593,0.02456947,18839.0,18838.0,0.63867692]
[1673568686859,0.02456947,18839.0,18838.0,0.73267692]
[1673568688348,0.02456947,18839.0,18838.0,1.23926161]
[1673568689617,0.02456947,18839.0,18838.0,1.04526161]
[1673568689880,0.02456947,18839.0,18838.0,0.74898186]
[1673568690126,0.02456947,18839.0,18838.0,0.93698186]
[1673568690377,0.02456947,18839.0,18838.0,1.42086822]
[1673568692373,0.02456947,18839.0,18838.0,0.72667692]
[1673568693119,0.02456947,18839.0,18838.0,0.81047692]
[1673568695385,0.02456947,18839.0,18838.0,1.91731072]
[1673568696146,0.00419086,18843.0,18839.0,0.1]
[1673568696433,0.00419086,18843.0,18842.0,0.1872]
[1673568696693,0.00419086,18843.0,18842.0,0.6801449]
[1673568697420,0.00419086,18843.0,18842.0,0.4929449]
[1673568698722,0.00419086,18843.0,18842.0,1.00785029]
[1673568698992,0.00419086,18843.0,18842.0,1.10785029]
[1673568700018,0.46092406,18843.0,18842.0,0.4929449]
[1673568700264,0.76092406,18843.0,18840.0,0.75725513]
[1673568700518,0.3,18842.0,18840.0,0.91673105]
[1673568701005,0.47881184,18843.0,18841.0,0.63465299]
[1673568701277,0.47881184,18843.0,18841.0,0.7911481]
[1673568701515,0.47826172,18843.0,18841.0,0.7911481]
[1673568702727,0.47826172,18843.0,18842.0,0.328968]
[1673568702968,0.47826172,18843.0,18842.0,0.26077654]
[1673568704504,0.02207864,18843.0,18842.0,0.85371011]
[1673568704996,0.02207864,18843.0,18842.0,1.18267811]
[1673568705941,0.02207864,18843.0,18842.0,0.85371011]
[1673568706206,0.02207864,18843.0,18842.0,1.18267811]
[1673568706445,0.02207864,18843.0,18842.0,1.18255854]
[1673568706688,0.02207864,18843.0,18842.0,0.58962497]
[1673568706923,0.02207864,18843.0,18842.0,1.14997043]
[1673568707158,0.02207864,18843.0,18842.0,0.58962497]
[1673568707642,0.02207864,18843.0,18842.0,1.24328019]
[1673568707919,0.02207864,18843.0,18842.0,0.58962497]
[1673568708160,0.02207864,18843.0,18842.0,1.29120408]
[1673568709239,0.02207864,18843.0,18842.0,0.58962497]
[1673568709955,0.02207864,18843.0,18842.0,1.22052222]
[1673568710441,0.02207864,18843.0,18842.0,0.58962497]
[1673568710695,0.02207864,18843.0,18842.0,1.25163577]
[1673568710936,0.02207864,18843.0,18842.0,0.58962497]
[1673568711172,0.02207864,18843.0,18842.0,1.16505729]
[1673568711414,0.02207864,18843.0,18842.0,0.58962497]
[1673568711656,0.02207864,18843.0,18842.0,1.10469629]
[1673568712183,0.02207864,18843.0,18842.0,0.58962497]
[1673568712418,0.02207864,18843.0,18842.0,1.23732859]
[1673568712655,0.02207864,18843.0,18842.0,0.58962497]
[1673568712896,0.02207864,18843.0,18842.0,1.20632887]
[1673568714902,0.02207864,18843.0,18842.0,0.87736087]
[1673568716094,0.02262876,18843.0,18842.0,0.77736087]
[1673568716328,0.02207864,18843.0,18842.0,0.77736087]
[1673568716794,0.02207864,18843.0,18842.0,1.10632887]
[1673568717055,0.02207864,18843.0,18842.0,0.77736087]
[1673568718535,0.02207864,18843.0,18842.0,1.10632887]
[1673568720093,0.02207864,18843.0,18842.0,0.77736087]
[1673568720649,0.02207864,18843.0,18842.0,1.10632887]
[1673568722995,0.02207864,18843.0,18842.0,0.77736087]
[1673568723233,0.32207864,18843.0,18842.0,0.77736087]
[1673568723478,0.02207864,18843.0,18842.0,0.77736087]
[1673568723962,0.32207864,18843.0,18842.0,0.77736087]
[1673568724760,0.02207864,18843.0,18842.0,0.77736087]
[1673568725937,0.02207864,18843.0,18842.0,1.10632887]
[1673568726168,0.02207864,18843.0,18842.0,0.77736087]
[1673568728658,0.18015058,18843.0,18842.0,0.77736087]
[1673568729379,0.02207864,18843.0,18842.0,0.77736087]
[1673568729625,0.02207864,18843.0,18842.0,0.58352497]
[1673568730116,0.02207864,18843.0,18842.0,1.16316008]
[1673568730380,0.02207864,18843.0,18842.0,0.58352497]
[1673568730635,0.02207864,18843.0,18842.0,0.68352497]
[1673568731371,0.02207864,18843.0,18842.0,0.84152607]
[1673568731619,0.00467529,18844.0,18843.0,0.1]
[1673568731850,0.00467529,18844.0,18843.0,0.58324192]
[1673568732337,0.00467529,18844.0,18843.0,0.67714192]
[1673568732584,0.02017173,18844.0,18843.0,0.83514302]
[1673568733358,0.02017173,18844.0,18843.0,0.67714192]
[1673568736010,0.02017173,18844.0,18843.0,0.83514302]
[1673568736272,0.02017173,18844.0,18843.0,0.67714192]
[1673568736518,0.02017173,18844.0,18843.0,1.94973078]
[1673568736759,0.02017173,18844.0,18843.0,0.92904302]
[1673568736995,0.02017173,18844.0,18843.0,1.16604467]
[1673568737489,0.02017173,18844.0,18843.0,0.92904302]
[1673568738758,0.02017173,18844.0,18843.0,0.77104192]
[1673568739000,0.02017173,18844.0,18843.0,1.2452272]
[1673568739253,0.02017173,18844.0,18843.0,1.1513272]
[1673568739498,0.02017173,18844.0,18843.0,0.8223592]
[1673568740351,0.02017173,18844.0,18841.0,0.1]
[1673568740352,1.40977582,18844.0,18841.0,0.55436588]
[1673568740600,0.39556283,18843.0,18841.0,0.55436588]
[1673568740860,0.39556283,18842.0,18841.0,0.55436588]
[1673568741118,0.69556283,18842.0,18841.0,0.55436588]
[1673568741363,0.69611295,18842.0,18839.0,0.26969277]
[1673568741616,0.3937,18841.0,18839.0,0.26969277]
[1673568741865,0.3937,18841.0,18839.0,0.79209442]
[1673568742122,0.55215492,18841.0,18839.0,0.79209442]
[1673568742372,0.3937,18841.0,18839.0,0.79209442]
[1673568743364,0.39425012,18841.0,18839.0,0.16969277]
[1673568743663,0.1,18839.0,18836.0,0.01682738]
[1673568743969,0.69545251,18839.0,18836.0,0.01682738]
[1673568744181,0.4464219,18838.0,18836.0,0.01682738]
[1673568744431,0.3,18837.0,18836.0,0.01682738]
[1673568745190,0.46091572,18838.0,18836.0,0.01682738]
[1673568745440,0.01449382,18838.0,18836.0,0.01682738]
[1673568746172,0.0932,18837.0,18836.0,0.01682738]
[1673568746420,0.52606784,18837.0,18836.0,0.01682738]
[1673568746670,0.82606784,18837.0,18836.0,0.01682738]
[1673568747404,0.93006413,18837.0,18836.0,0.01682738]
[1673568747652,0.93006413,18837.0,18835.0,0.01590959]
[1673568747653,0.92021796,18837.0,18835.0,0.01590959]
[1673568747899,0.4871,18836.0,18835.0,0.01590959]
[1673568748647,0.50152788,18836.0,18835.0,0.01590959]
[1673568749397,0.90131265,18836.0,18835.0,0.01590959]
[1673568750144,0.41476277,18836.0,18835.0,0.01590959]
[1673568750631,0.71476277,18836.0,18835.0,0.01590959]
[1673568754610,0.79562905,18836.0,18835.0,0.01590959]
[1673568754883,0.91026277,18836.0,18835.0,5.9e-07]
[1673568757088,0.510478,18836.0,18835.0,5.9e-07]
[1673568758079,0.50992788,18836.0,18835.0,5.9e-07]
[1673568758571,0.20142788,18836.0,18835.0,5.9e-07]
[1673568758824,0.01442788,18836.0,18835.0,0.10000059]
[1673568760048,0.01442788,18836.0,18835.0,0.69492078]
[1673568760791,0.01442788,18836.0,18835.0,0.42896859]
[1673568761285,0.01442788,18836.0,18835.0,1.0166466]
[1673568761545,0.46322733,18839.0,18835.0,1.0166466]
[1673568761834,0.46322733,18839.0,18835.0,0.89798354]
[1673568762318,0.46322733,18839.0,18836.0,0.60314766]
[1673568762580,0.46322733,18839.0,18836.0,0.8134526]
[1673568762839,0.00055012,18838.0,18837.0,0.1]
[1673568763068,0.46322733,18839.0,18837.0,0.1]
[1673568763315,0.48791677,18838.0,18836.0,0.60314766]
[1673568763571,0.3,18837.0,18836.0,0.60314766]
[1673568764063,0.30055012,18837.0,18835.0,0.10000059]
[1673568764328,0.30055012,18837.0,18835.0,0.6608914]
[1673568765337,0.72837529,18837.0,18835.0,0.6608914]
[1673568765575,0.01362016,18836.0,18835.0,0.66118815]
[1673568765813,0.01362016,18836.0,18835.0,0.6608914]
[1673568766796,0.01362016,18836.0,18835.0,5.9e-07]
[1673568767047,0.55239577,18836.0,18835.0,5.9e-07]
[1673568767287,0.85239577,18836.0,18835.0,5.9e-07]
[1673568767785,0.31362016,18836.0,18835.0,5.9e-07]
[1673568768769,0.01362016,18836.0,18835.0,5.9e-07]
[1673568771775,0.10732016,18836.0,18835.0,5.9e-07]
[1673568775533,0.10732016,18836.0,18835.0,0.10000059]
[1673568777532,0.01362016,18836.0,18835.0,0.79626036]
[1673568778608,0.52774552,18839.0,18836.0,0.1]
[1673568778856,0.52774552,18839.0,18837.0,0.328968]
[1673568779111,0.52829564,18839.0,18838.0,0.328968]
[1673568779345,0.53624552,18839.0,18836.0,0.1]
[1673568779597,0.01411459,18838.0,18836.0,0.31030494]
[1673568779832,0.01411459,18838.0,18837.0,0.328968]
[1673568780077,0.01466471,18838.0,18837.0,0.328968]
[1673568780600,0.62906793,18838.0,18836.0,0.1]
[1673568780849,0.44862072,18837.0,18835.0,0.77904093]
[1673568781093,0.3,18836.0,18835.0,0.77904093]
[1673568781343,0.3,18836.0,18835.0,5.9e-07]
[1673568781344,0.30055012,18836.0,18835.0,5.9e-07]
[1673568781844,0.29987275,18836.0,18835.0,5.9e-07]
[1673568782081,0.5034671,18838.0,18835.0,5.9e-07]
[1673568782338,0.09415012,18837.0,18835.0,5.9e-07]
[1673568782585,0.01407325,18836.0,18835.0,0.52835703]
[1673568783807,0.01462337,18836.0,18835.0,0.52835703]
[1673568784071,0.01407325,18836.0,18835.0,0.52835703]
[1673568784318,0.54420243,18836.0,18835.0,5.9e-07]
[1673568784557,1.00254703,18836.0,18835.0,5.9e-07]
[1673568784800,1.00309715,18836.0,18835.0,5.9e-07]
[1673568785527,0.84420243,18836.0,18835.0,5.9e-07]
[1673568785765,0.31407325,18836.0,18835.0,5.9e-07]
[1673568786022,0.31407325,18836.0,18835.0,0.10000059]
[1673568786268,0.01407325,18836.0,18835.0,0.60284965]
[1673568786515,0.01462337,18836.0,18835.0,0.60284965]
[1673568786761,0.31407325,18836.0,18835.0,0.60284965]
[1673568787239,0.01407325,18836.0,18835.0,0.60284965]
[1673568789477,0.01407325,18836.0,18835.0,0.76073182]
[1673568789720,0.01407325,18836.0,18835.0,1.08969982]
[1673568790213,0.01407325,18836.0,18835.0,0.93169872]
[1673568790701,0.69628503,18838.0,18835.0,0.93169872]
[1673568790947,0.69628503,18838.0,18836.0,0.328968]
[1673568791178,0.3,18837.0,18835.0,0.60273072]
[1673568791426,0.72152964,18837.0,18835.0,0.60273072]
[1673568791920,0.40858581,18836.0,18835.0,5.9e-07]
[1673568792163,0.96138053,18836.0,18835.0,5.9e-07]
[1673568793151,0.80303593,18836.0,18835.0,5.9e-07]
[1673568793406,0.96138053,18836.0,18835.0,5.9e-07]
[1673568794162,0.0939,18836.0,18835.0,5.9e-07]
[1673568794411,0.09445012,18836.0,18834.0,0.684946]
[1673568794651,1.00908452,18836.0,18834.0,0.684946]
[1673568796405,1.24619243,18836.0,18834.0,0.09500059]
[1673568796720,1.0214364,18835.0,18833.0,0.1]
[1673568796973,0.98929308,18834.0,18832.0,0.71594858]
[1673568797215,0.53094848,18834.0,18832.0,0.71594858]
[1673568797461,0.68929308,18834.0,18832.0,0.71594858]
[1673568797706,0.01357242,18833.0,18832.0,0.71594858]
[1673568799252,0.31357242,18833.0,18832.0,0.71594858]
[1673568799966,0.31357242,18833.0,18832.0,0.0177302]
[1673568799967,0.40747242,18833.0,18832.0,0.0177302]
[1673568800213,1.02717268,18833.0,18832.0,0.0177302]
[1673568801986,1.02717268,18833.0,18832.0,0.0177302]
[1673568802241,0.56882808,18833.0,18832.0,0.0177302]
[1673568802520,0.10747242,18833.0,18832.0,0.0177302]
[1673568802738,0.01357242,18833.0,18832.0,0.1177302]
[1673568804452,0.31357242,18833.0,18832.0,0.0177302]
[1673568804927,0.84920076,18833.0,18832.0,0.0177302]
[1673568805190,1.33835327,18833.0,18832.0,0.0177302]
[1673568805420,1.32286934,18833.0,18832.0,0.0177302]
[1673568805682,1.16566428,18833.0,18832.0,0.0177302]
[1673568805921,1.0073621,18833.0,18832.0,0.0177302]
[1673568806405,1.16560908,18833.0,18832.0,0.0177302]
[1673568806672,1.46486008,18833.0,18832.0,0.0177302]
[1673568806908,0.1,18831.0,18830.0,0.01739395]
[1673568807148,0.2587762,18831.0,18830.0,0.01739395]
[1673568807403,0.95434142,18831.0,18828.0,0.01906921]
[1673568807668,0.82994172,18830.0,18826.0,0.01906921]
[1673568807922,0.0937,18828.0,18827.0,0.65558686]
[1673568808203,0.98708586,18830.0,18828.0,0.59774879]
[1673568808428,0.90958015,18830.0,18828.0,0.59774879]
[1673568808918,0.04977974,18830.0,18829.0,0.50214001]
[1673568809237,0.04977974,18830.0,18829.0,1.04141295]
[1673568809455,0.26340353,18833.0,18829.0,0.934437]
[1673568809721,0.04974708,18833.0,18830.0,0.63927294]
[1673568809939,0.04974708,18833.0,18831.0,0.328968]
[1673568810179,0.49164025,18833.0,18831.0,0.59046524]
[1673568810512,0.49109013,18833.0,18831.0,0.59046524]
[1673568810728,0.49209013,18833.0,18831.0,0.59046524]
[1673568810979,0.05074708,18833.0,18830.0,0.114]
[1673568811227,0.05074708,18833.0,18832.0,0.0939]
[1673568811491,0.04974708,18833.0,18832.0,0.422868]
[1673568811717,0.059,18833.0,18832.0,0.422868]
[1673568811972,0.00925293,18833.0,18832.0,0.422868]
[1673568812723,0.64282061,18837.0,18833.0,0.1]
[1673568812990,0.67972762,18836.0,18833.0,0.40420494]
[1673568813239,0.44626028,18835.0,18833.0,0.1939]
[1673568813482,0.44571016,18835.0,18833.0,0.1939]
[1673568813742,0.4597939,18835.0,18834.0,0.328968]
[1673568813997,0.44218151,18834.0,18832.0,0.1]
[1673568814217,0.74273163,18834.0,18832.0,0.1]
[1673568814482,0.44218151,18834.0,18833.0,0.036]
[1673568814743,0.01508374,18835.0,18833.0,0.036]
[1673568814744,0.5456469,18835.0,18833.0,0.036]
[1673568815027,0.01408374,18835.0,18834.0,0.62332632]
[1673568815592,0.01408374,18835.0,18834.0,0.60832632]
[1673568816488,0.04608374,18835.0,18834.0,0.60832632]
[1673568816975,0.04608374,18835.0,18834.0,0.93729432]
[1673568817459,0.04608374,18835.0,18834.0,0.9315663]
[1673568817711,0.04608374,18835.0,18834.0,0.6025983]
[1673568818484,0.04608374,18835.0,18834.0,1.0315663]
[1673568820485,0.04608374,18835.0,18834.0,0.7025983]
[1673568821944,0.04608374,18835.0,18834.0,1.0315663]
[1673568824166,0.04608374,18835.0,18834.0,0.7025983]
[1673568824671,0.04608374,18835.0,18833.0,0.1939]
[1673568824931,0.52889164,18835.0,18833.0,0.70827971]
[1673568825157,0.52889164,18835.0,18834.0,0.328968]
[1673568825459,0.04608374,18835.0,18833.0,0.70827971]
[1673568825746,0.01408374,18835.0,18834.0,0.59168027]
[1673568825970,0.01508374,18835.0,18834.0,0.59168027]
[1673568826222,0.01563386,18835.0,18833.0,0.2299]
[1673568826506,0.51315256,18835.0,18833.0,0.1939]
[1673568826706,0.51260244,18835.0,18834.0,0.328968]
[1673568826998,0.54460244,18835.0,18833.0,0.1939]
[1673568827451,0.41855846,18834.0,18832.0,0.63163178]
[1673568827964,0.41855846,18834.0,18833.0,0.036]
[1673568828204,0.41855846,18834.0,18832.0,0.63163178]
[1673568828448,0.41855846,18834.0,18832.0,0.74163178]
[1673568828449,0.42155846,18834.0,18832.0,0.74163178]
[1673568828684,0.43444965,18834.0,18832.0,0.63163178]
[1673568828930,0.43544965,18834.0,18833.0,0.036]
[1673568829181,0.43089953,18834.0,18832.0,0.63163178]
[1673568829418,0.43389953,18834.0,18832.0,0.74163178]
[1673568829680,0.43389953,18834.0,18832.0,0.63163178]
[1673568829930,0.43389953,18834.0,18833.0,0.328968]
[1673568830430,0.43389953,18834.0,18832.0,0.63163178]
[1673568830710,0.43489953,18834.0,18833.0,0.036]
[1673568830953,0.43489953,18834.0,18833.0,0.03622428]
[1673568831682,0.43489953,18834.0,18833.0,0.036]
[1673568832193,0.43489953,18834.0,18833.0,0.364968]
[1673568832960,0.43489953,18834.0,18833.0,0.036]
[1673568833202,0.01689119,18834.0,18833.0,0.69425172]
[1673568833470,0.01689119,18834.0,18833.0,1.02321972]
[1673568834680,0.01689119,18834.0,18833.0,1.12321972]
[1673568838624,0.01689119,18834.0,18833.0,0.464968]
[1673568838845,0.01689119,18834.0,18833.0,0.652268]
[1673568839093,0.01689119,18834.0,18833.0,1.67332808]
[1673568839329,0.01689119,18834.0,18833.0,1.83217019]
[1673568839568,0.02034165,18834.0,18833.0,1.83217019]
[1673568839818,0.02034165,18834.0,18833.0,1.04811176]
[1673568840307,0.02034165,18834.0,18833.0,1.42634755]
[1673568840793,0.02034165,18834.0,18833.0,1.41962033]
[1673568841294,0.02034165,18834.0,18833.0,0.81111011]
[1673568841560,0.02034165,18834.0,18833.0,1.04811176]
[1673568841781,0.65673945,18839.0,18835.0,0.00085199]
[1673568842127,0.00529374,18839.0,18836.0,0.53927294]
[1673568842317,0.00529374,18839.0,18837.0,0.53927294]
[1673568842559,0.05292795,18839.0,18838.0,0.428968]
[1673568842813,0.00529374,18839.0,18838.0,0.616868]
[1673568843074,0.44623149,18839.0,18838.0,0.428968]
[1673568843349,0.00529374,18839.0,18838.0,0.1]
[1673568843580,0.01029374,18839.0,18838.0,0.428968]
[1673568843822,0.00529374,18839.0,18838.0,0.428968]
[1673568844066,0.54322431,18839.0,18838.0,0.119]
[1673568844309,0.54322431,18839.0,18838.0,0.019]
[1673568844553,0.84322431,18839.0,18838.0,0.019]
[1673568844789,0.84322431,18839.0,18836.0,0.63639034]
[1673568844790,1.00144928,18839.0,18836.0,0.63639034]
[1673568845050,0.3,18838.0,18836.0,0.63639034]
[1673568845289,0.54322431,18839.0,18837.0,0.60401215]
[1673568845531,0.54822431,18839.0,18837.0,0.60401215]
[1673568846286,0.54322431,18839.0,18837.0,0.60401215]
[1673568846794,0.54377443,18839.0,18837.0,0.60401215]
[1673568847040,0.54377443,18839.0,18837.0,0.62301215]
[1673568847527,0.54322431,18839.0,18837.0,0.62301215]
[1673568848052,0.00529374,18839.0,18837.0,0.83331709]
[1673568848292,0.00529374,18839.0,18838.0,0.423968]
[1673568848558,0.00529374,18839.0,18838.0,0.1]
[1673568849801,0.01029374,18839.0,18838.0,0.1]
[1673568851022,0.01029374,18839.0,18838.0,0.430063]
[1673568852010,0.01029374,18839.0,18838.0,1.01026038]
[1673568856394,0.01084386,18839.0,18838.0,1.01026038]
[1673568856651,0.01084386,18839.0,18838.0,0.98526038]
[1673568856652,0.01029374,18839.0,18838.0,0.98526038]
[1673568858652,0.5332331,18839.0,18838.0,0.075]
[1673568858889,0.5332331,18839.0,18836.0,0.65061274]
[1673568859141,0.5332331,18839.0,18837.0,0.54287836]
[1673568859389,0.53268298,18839.0,18837.0,0.54287836]
[1673568859626,0.52768298,18839.0,18837.0,0.54287836]
[1673568860359,0.00529374,18839.0,18837.0,0.56187836]
[1673568860858,0.00529374,18839.0,18838.0,0.1]
[1673568862317,0.01029374,18839.0,18838.0,0.1]
[1673568862547,0.41964617,18839.0,18838.0,0.1]
[1673568863299,0.41964617,18839.0,18837.0,0.54287836]
[1673568864034,0.41964617,18839.0,18837.0,0.54260913]
[1673568864755,0.41964617,18839.0,18838.0,0.1]
[1673568865303,0.41464617,18839.0,18838.0,0.1]
[1673568865564,0.41464617,18839.0,18838.0,0.08]
[1673568866065,0.01029374,18839.0,18838.0,0.98070387]
[1673568866346,0.01029374,18839.0,18838.0,1.19456193]
[1673568868058,0.01029374,18839.0,18838.0,0.598163]
[1673568868287,0.01029374,18839.0,18838.0,0.692163]
[1673568868749,0.01029374,18839.0,18838.0,0.85100271]
[1673568869509,0.00529374,18839.0,18838.0,0.85100271]
[1673568869755,0.00529374,18839.0,18838.0,0.94100271]
[1673568869978,0.00529374,18839.0,18838.0,0.94122693]
[1673568870228,0.00529374,18839.0,18838.0,1.17822858]
[1673568870471,0.00529374,18839.0,18838.0,1.96207126]
[1673568870705,0.00529374,18839.0,18838.0,1.17822858]
[1673568871167,0.00529374,18839.0,18838.0,0.94122693]
[1673568871911,1e-08,18839.0,18838.0,0.84712693]
[1673568872161,1e-08,18839.0,18838.0,1.52181981]
[1673568872939,1e-08,18839.0,18838.0,1.75882146]
[1673568873166,1e-08,18839.0,18838.0,1.52181981]
[1673568874167,1e-08,18839.0,18838.0,2.5426653]
[1673568876105,1e-08,18839.0,18838.0,2.85866751]
[1673568876379,1e-08,18839.0,18838.0,2.6998278]
[1673568877112,1e-08,18839.0,18838.0,1.75873364]
[1673568877344,1e-08,18839.0,18838.0,1.66473364]
[1673568877846,1e-08,18839.0,18838.0,1.42773199]
[1673568878106,1e-08,18839.0,18838.0,0.59428722]